[Event "European Individual Women's Chess Championship 2017"]
[Site "Riga LAT"]
[Date "2017.04.21"]
[Round "10.32"]
[White "Ivanenko, Olga I."]
[Black "Babiy, Olga"]
[Result "1/2-1/2"]
[LiveChessVersion "1.4.8"]
[BlackElo "2359"]
[WhiteElo "2252"]
[ECO "A01"]
[TimeControl "40/5400:1800+30"]

1. b3 {[%clk 1:30:57]} Nf6 {[%clk 1:29:59]} 2. Bb2 {[%clk 1:31:21]} e6
{[%clk 1:30:08]} 3. e3 {[%clk 1:31:43]} c5 {[%clk 1:30:09]} 4. d4
{[%clk 1:29:47]} b6 {[%clk 1:29:05]} 5. Nc3 {[%clk 1:29:23]} Bb7 {[%clk 1:28:48]}
6. Nge2 {[%clk 1:29:07]} Be7 {[%clk 1:27:32]} 7. d5 {[%clk 1:27:47]} exd5
{[%clk 1:11:04]} 8. Nf4 {[%clk 1:28:01]} d4 {[%clk 1:11:13]} 9. exd4
{[%clk 1:27:54]} O-O {[%clk 1:11:33]} 10. Be2 {[%clk 1:14:51]} cxd4
{[%clk 1:07:07]} 11. Qxd4 {[%clk 1:14:25]} Bc5 {[%clk 1:00:23]} 12. Qd2
{[%clk 1:13:07]} d5 {[%clk 0:53:37]} 13. O-O {[%clk 1:00:35]} Ne4
{[%clk 0:34:23]} 14. Nxe4 {[%clk 0:42:24]} dxe4 {[%clk 0:33:55]} 15. Qc3
{[%clk 0:42:50]} Qg5 {[%clk 0:34:04]} 16. h4 {[%clk 0:25:03]} Qh6
{[%clk 0:34:13]} 17. Rad1 {[%clk 0:23:07]} e3 {[%clk 0:30:49]} 18. fxe3
{[%clk 0:22:45]} Nc6 {[%clk 0:21:33]} 19. Nh5 {[%clk 0:21:58]} Rfe8
{[%clk 0:13:08]} 20. Qxg7+ {[%clk 0:10:14]} Qxg7 {[%clk 0:13:36]} 21. Bxg7
{[%clk 0:10:38]} Rxe3 {[%clk 0:13:21]} 22. Bc4 {[%clk 0:11:03]} Re4+
{[%clk 0:06:18]} 23. Kh2 {[%clk 0:10:29]} Rxh4+ {[%clk 0:06:46]} 24. Kg3
{[%clk 0:10:54]} Rxh5 {[%clk 0:07:04]} 25. Bxf7+ {[%clk 0:09:46]} Kxg7
{[%clk 0:07:33]} 26. Bxh5 {[%clk 0:10:09]} Kh6 {[%clk 0:05:23]} 27. Rf6+
{[%clk 0:04:35]} Kg5 {[%clk 0:05:51]} 28. Rf7 {[%clk 0:03:56]} Ne7
{[%clk 0:05:43]} 29. Bf3 {[%clk 0:02:10]} Bxf3 {[%clk 0:05:28]} 30. Kxf3
{[%clk 0:01:38]} Kg6 {[%clk 0:05:39]} 31. Rf4 {[%clk 0:02:04]} Nc6
{[%clk 0:03:21]} 32. Rg4+ {[%clk 0:02:31]} Kf6 {[%clk 0:03:37]} 33. Rf4+
{[%clk 0:02:57]} Ke6 {[%clk 0:03:33]} 34. Rh4 {[%clk 0:01:20]} Ne5+
{[%clk 0:03:32]} 35. Ke4 {[%clk 0:01:43]} Nf7 {[%clk 0:03:58]} 36. Rh5
{[%clk 0:00:52]} Rg8 {[%clk 0:04:06]} 37. Rd2 {[%clk 0:00:45]} Rg7
{[%clk 0:02:06]} 38. Re2 {[%clk 0:00:57]} Ng5+ {[%clk 0:00:57]} 39. Kf4+
{[%clk 0:01:01]} Kf6 {[%clk 0:01:26]} 40. Rh6+ {[%clk 0:30:53]} Rg6
{[%clk 0:30:39]} 41. Rxg6+ {[%clk 0:28:43]} hxg6 {[%clk 0:30:07]} 42. Re8
{[%clk 0:26:54]} Nf7 {[%clk 0:29:28]} 43. Ra8 {[%clk 0:25:01]} a5
{[%clk 0:29:18]} 44. Ke4 {[%clk 0:25:17]} Ng5+ {[%clk 0:26:48]} 45. Kd5
{[%clk 0:22:11]} Ne6 {[%clk 0:26:32]} 46. Kc4 {[%clk 0:21:21]} g5
{[%clk 0:21:06]} 47. c3 {[%clk 0:19:21]} g4 {[%clk 0:20:13]} 48. b4
{[%clk 0:19:47]} axb4 {[%clk 0:19:46]} 49. cxb4 {[%clk 0:20:13]} Bf2
{[%clk 0:17:47]} 50. Kd3 {[%clk 0:15:07]} Ke5 {[%clk 0:16:27]} 51. Ke2
{[%clk 0:14:10]} g3 {[%clk 0:16:41]} 52. a4 {[%clk 0:13:00]} Nc7 {[%clk 0:15:45]}
53. Rc8 {[%clk 0:08:09]} Kd6 {[%clk 0:14:55]} 54. a5 {[%clk 0:07:49]} b5
{[%clk 0:14:34]} 55. Rg8 {[%clk 0:07:21]} Kd5 {[%clk 0:09:10]} 56. Rg6
{[%clk 0:03:31]} Ne6 {[%clk 0:08:46]} 57. Rf6 {[%clk 0:03:31]} Bd4
{[%clk 0:06:31]} 58. Rf7 {[%clk 0:03:58]} Kc6 {[%clk 0:05:42]} 59. Kd3
{[%clk 0:03:04]} Bf2 {[%clk 0:05:45]} 60. a6 {[%clk 0:02:09]} Nc7
{[%clk 0:05:35]} 61. Rf6+ {[%clk 0:02:36]} Kd5 {[%clk 0:03:18]} 62. Rh6
{[%clk 0:02:27]} Ne6 {[%clk 0:02:33]} 63. Rf6 {[%clk 0:00:56]} Nd8
{[%clk 0:00:43]} 64. Ke2 {[%clk 0:00:44]} Nc6 {[%clk 0:00:57]} 65. Rf7
{[%clk 0:00:43]} Kd6 {[%clk 0:00:44]} 66. Rb7 {[%clk 0:00:45]} Na7
{[%clk 0:00:38]} 67. Kd3 {[%clk 0:00:51]} Kc6 {[%clk 0:00:40]} 68. Ke4
{[%clk 0:00:46]} Nc8 69. Rh7 {[%clk 0:01:10]} Kb6 {[%clk 0:01:01]} 70. Rh8
{[%clk 0:00:43]} Nd6+ {[%clk 0:01:18]} 71. Kd5 {[%clk 0:01:07]} Nc4
{[%clk 0:01:04]} 72. Rh6+ {[%clk 0:00:59]} Ka7 {[%clk 0:01:24]} 73. Ke4
{[%clk 0:00:40]} Nb6 {[%clk 0:01:12]} 74. Ke5 {[%clk 0:00:33]} Kxa6
{[%clk 0:01:28]} 75. Kd6 {[%clk 0:00:47]} Nc4+ {[%clk 0:00:43]} 76. Kc7+
{[%clk 0:01:05]} Bb6+ {[%clk 0:00:42]} 77. Kc8 {[%clk 0:01:07]} Ka7
{[%clk 0:00:42]} 78. Rh7+ {[%clk 0:01:17]} Ka6 {[%clk 0:01:11]} 79. Rh6
{[%clk 0:01:37]} Ne3 {[%clk 0:00:58]} 80. Rg6 {[%clk 0:01:02]} Nxg2
{[%clk 0:00:41]} 81. Rxg3 {[%clk 0:01:27]} Ne3 {[%clk 0:01:01]} 82. Rg1
{[%clk 0:01:15]} Nc2 {[%clk 0:00:44]} 83. Rg4 {[%clk 0:01:20]} Bd4
{[%clk 0:00:51]} 84. Rg6+ {[%clk 0:01:37]} Ka7 {[%clk 0:01:12]} 85. Rg5
{[%clk 0:00:42]} Kb6 {[%clk 0:01:33]} 86. Rg6+ {[%clk 0:01:08]} Ka7
{[%clk 0:02:02]} 87. Rg5 {[%clk 0:01:34]} Ka6 {[%clk 0:02:25]} 88. Rg6+
{[%clk 0:02:01]} Bb6 {[%clk 0:02:49]} 89. Rg4 {[%clk 0:02:26]} Ne3
{[%clk 0:02:26]} 90. Rg1 {[%clk 0:02:29]} Bd4 {[%clk 0:01:50]} 91. Rg6+
{[%clk 0:02:55]} Ka7 {[%clk 0:02:18]} 92. Rh6 {[%clk 0:01:00]} Nc4
{[%clk 0:01:33]} 93. Rh7+ {[%clk 0:01:07]} Kb6 {[%clk 0:01:55]} 94. Rh6+
{[%clk 0:01:29]} Ka7 {[%clk 0:02:23]} 95. Rh7+ {[%clk 0:01:55]} Ka6
{[%clk 0:02:50]} 96. Rh6+ {[%clk 0:02:12]} Nb6+ {[%clk 0:00:54]} 97. Kc7
{[%clk 0:02:38]} Be3 {[%clk 0:00:58]} 98. Re6 {[%clk 0:00:51]} Bd4
{[%clk 0:00:39]} 99. Rh6 {[%clk 0:00:57]} Be5+ {[%clk 0:00:44]} 100. Kc6
{[%clk 0:01:24]} Bd4 {[%clk 0:01:11]} 101. Rh2 {[%clk 0:00:35]} Na4
{[%clk 0:01:06]} 102. Rh7 {[%clk 0:00:31]} Nc3 {[%clk 0:00:33]} 103. Rh4
{[%clk 0:00:41]} Bf6 {[%clk 0:00:43]} 104. Rh6 {[%clk 0:00:54]} Bd4
{[%clk 0:00:36]} 105. Rh4 {[%clk 0:00:57]} Bf2 {[%clk 0:00:38]} 106. Rh3
{[%clk 0:01:02]} Bd4 {[%clk 0:00:41]} 107. Rh4 {[%clk 0:01:30]} Bf6
{[%clk 0:00:40]} 108. Rh6 {[%clk 0:01:58]} Bg7 {[%clk 0:00:49]} 109. Rh7
{[%clk 0:02:06]} Be5 {[%clk 0:00:49]} 110. Rh5 {[%clk 0:02:21]} Bd4
{[%clk 0:00:37]} 111. Rh4 {[%clk 0:02:48]} Bf2 {[%clk 0:00:38]} 112. Rh3
{[%clk 0:02:49]} Be1 {[%clk 0:00:33]} 113. Re3 {[%clk 0:02:46]} Bd2
{[%clk 0:00:50]} 114. Re8 {[%clk 0:02:37]} Ka7 {[%clk 0:01:19]} 115. Re7+
{[%clk 0:02:59]} Ka6 {[%clk 0:01:29]} 116. Re8 {[%clk 0:03:20]} Ka7
{[%clk 0:01:57]} 1/2-1/2

[Event "European Individual Women's Chess Championship 2017"]
[Site "Riga LAT"]
[Date "2017.04.21"]
[Round "10.33"]
[White "Milliet, Sophie"]
[Black "Narva, Mai"]
[Result "1-0"]
[LiveChessVersion "1.4.8"]
[BlackElo "2249"]
[WhiteElo "2352"]
[ECO "B67"]
[TimeControl "40/5400:1800+30"]

1. e4 {[%clk 1:30:57]} c5 {[%clk 1:30:49]} 2. Nf3 {[%clk 1:31:20]} Nc6
{[%clk 1:31:06]} 3. Nc3 {[%clk 1:31:30]} d6 {[%clk 1:31:17]} 4. d4
{[%clk 1:31:49]} cxd4 {[%clk 1:31:37]} 5. Nxd4 {[%clk 1:32:15]} Nf6
{[%clk 1:31:55]} 6. Bg5 {[%clk 1:32:04]} e6 {[%clk 1:32:11]} 7. Qd2
{[%clk 1:31:51]} a6 {[%clk 1:32:26]} 8. O-O-O {[%clk 1:31:58]} Bd7
{[%clk 1:32:30]} 9. f4 {[%clk 1:31:45]} b5 {[%clk 1:32:41]} 10. Bxf6
{[%clk 1:31:08]} gxf6 {[%clk 1:32:59]} 11. Kb1 {[%clk 1:31:21]} Qb6
{[%clk 1:33:10]} 12. Nxc6 {[%clk 1:31:26]} Bxc6 {[%clk 1:33:25]} 13. f5
{[%clk 1:31:34]} O-O-O {[%clk 1:33:17]} 14. fxe6 {[%clk 1:19:00]} fxe6
{[%clk 1:33:35]} 15. Bd3 {[%clk 1:19:15]} Be7 {[%clk 1:29:59]} 16. Qe2
{[%clk 1:13:15]} Bd7 {[%clk 1:21:54]} 17. a4 {[%clk 0:34:24]} b4 {[%clk 1:07:07]}
18. Bxa6+ {[%clk 0:34:47]} Kb8 {[%clk 1:07:16]} 19. Na2 {[%clk 0:34:51]} Bxa4
{[%clk 1:06:48]} 20. Bc4 {[%clk 0:31:14]} Rc8 {[%clk 1:03:07]} 21. Rd2
{[%clk 0:29:26]} Bd7 {[%clk 0:59:11]} 22. Rhd1 {[%clk 0:29:23]} Ka7
{[%clk 0:26:49]} 23. Bb3 {[%clk 0:29:22]} Qa5 {[%clk 0:17:35]} 24. Rxd6
{[%clk 0:16:33]} Bxd6 {[%clk 0:17:20]} 25. Rxd6 {[%clk 0:17:02]} Bb5
{[%clk 0:08:52]} 26. Qf2+ {[%clk 0:16:51]} Kb7 {[%clk 0:09:09]} 27. Bxe6
{[%clk 0:14:55]} Rcd8 {[%clk 0:05:05]} 28. Bd5+ {[%clk 0:15:01]} Kc7
{[%clk 0:04:11]} 29. Qc5+ {[%clk 0:15:22]} Kb8 {[%clk 0:04:03]} 30. Rb6+
{[%clk 0:15:45]} 1-0

[Event "European Individual Women's Chess Championship 2017"]
[Site "Riga LAT"]
[Date "2017.04.21"]
[Round "10.34"]
[White "Toma, Katarzyna"]
[Black "Mammadzada, Gunay"]
[Result "0-1"]
[LiveChessVersion "1.4.8"]
[BlackElo "2348"]
[WhiteElo "2229"]
[ECO "B50"]
[TimeControl "40/5400:1800+30"]

1. e4 {[%clk 1:30:58]} c5 {[%clk 1:30:53]} 2. Nf3 {[%clk 1:31:22]} d6
{[%clk 1:31:19]} 3. c3 {[%clk 1:31:48]} Nf6 {[%clk 1:31:00]} 4. Bd3
{[%clk 1:32:11]} Nbd7 {[%clk 1:19:39]} 5. Bc2 {[%clk 1:32:05]} g6
{[%clk 1:11:14]} 6. O-O {[%clk 1:31:33]} Bg7 {[%clk 1:10:56]} 7. d4
{[%clk 1:30:39]} cxd4 8. cxd4 {[%clk 1:31:03]} Nb6 {[%clk 0:59:21]} 9. Nc3
{[%clk 1:30:01]} O-O {[%clk 0:59:23]} 10. h3 {[%clk 1:28:23]} Bd7
{[%clk 0:56:36]} 11. Re1 {[%clk 1:22:42]} d5 {[%clk 0:45:39]} 12. e5
{[%clk 1:22:52]} Ne8 {[%clk 0:46:05]} 13. Bg5 {[%clk 1:11:53]} Nc7
{[%clk 0:40:54]} 14. a4 {[%clk 1:08:43]} a5 {[%clk 0:38:39]} 15. Bb3
{[%clk 1:05:03]} Be6 {[%clk 0:33:35]} 16. Rc1 {[%clk 1:03:07]} Qd7
{[%clk 0:30:48]} 17. Nh2 {[%clk 0:55:44]} Rac8 {[%clk 0:29:00]} 18. Ng4
{[%clk 0:54:14]} Na6 {[%clk 0:27:20]} 19. Qe2 {[%clk 0:34:08]} Nb4
{[%clk 0:26:55]} 20. f4 {[%clk 0:34:05]} Nc4 {[%clk 0:24:36]} 21. Nf2
{[%clk 0:32:16]} Rc6 {[%clk 0:23:21]} 22. Nb5 {[%clk 0:29:37]} b6
{[%clk 0:21:15]} 23. Rc3 {[%clk 0:29:42]} f6 {[%clk 0:20:04]} 24. exf6
{[%clk 0:24:42]} exf6 {[%clk 0:20:23]} 25. Bh4 {[%clk 0:25:08]} Bf7
{[%clk 0:17:56]} 26. Nd1 {[%clk 0:16:47]} Re6 {[%clk 0:15:27]} 27. Qf2
{[%clk 0:16:56]} Rxe1+ {[%clk 0:15:26]} 28. Qxe1 {[%clk 0:17:23]} Nc6
{[%clk 0:12:20]} 29. Rc2 {[%clk 0:11:00]} Qf5 {[%clk 0:08:21]} 30. Re2
{[%clk 0:10:34]} Qxf4 {[%clk 0:07:47]} 31. Bxc4 {[%clk 0:08:39]} dxc4
{[%clk 0:08:15]} 32. Bg3 {[%clk 0:09:03]} Qg5 {[%clk 0:07:15]} 33. Bd6
{[%clk 0:06:55]} Rc8 {[%clk 0:06:21]} 34. Ndc3 {[%clk 0:06:04]} f5
{[%clk 0:05:01]} 35. Be5 {[%clk 0:06:22]} Nxe5 {[%clk 0:02:06]} 36. dxe5
{[%clk 0:06:50]} Be6 {[%clk 0:02:27]} 37. Nd6 {[%clk 0:06:27]} Rc5
{[%clk 0:01:28]} 38. Ncb5 {[%clk 0:06:07]} Qe7 {[%clk 0:00:47]} 39. Kh1
{[%clk 0:02:22]} h6 {[%clk 0:00:35]} 40. Qg3 {[%clk 0:30:43]} Kh7
{[%clk 0:30:36]} 41. Qe1 {[%clk 0:24:00]} f4 {[%clk 0:20:12]} 42. Kh2
{[%clk 0:13:40]} Rd5 {[%clk 0:17:22]} 43. Na3 {[%clk 0:11:37]} f3
{[%clk 0:12:20]} 44. gxf3 {[%clk 0:11:06]} Rxe5 {[%clk 0:11:14]} 45. Rxe5
{[%clk 0:07:22]} Qxd6 {[%clk 0:11:43]} 46. f4 {[%clk 0:07:44]} Bxe5
{[%clk 0:11:57]} 47. fxe5 {[%clk 0:06:54]} Qd4 {[%clk 0:08:48]} 48. Qe2
{[%clk 0:05:17]} c3 {[%clk 0:09:07]} 49. bxc3 {[%clk 0:04:38]} Qxc3
{[%clk 0:09:36]} 50. Nb5 {[%clk 0:04:32]} Qxh3+ {[%clk 0:09:50]} 51. Kg1
{[%clk 0:04:59]} Qg3+ {[%clk 0:10:05]} 0-1

[Event "European Individual Women's Chess Championship 2017"]
[Site "Riga LAT"]
[Date "2017.04.21"]
[Round "10.35"]
[White "Sandu, Mihaela"]
[Black "Tsolakidou, Stavroula"]
[Result "1/2-1/2"]
[LiveChessVersion "1.4.8"]
[BlackElo "2395"]
[WhiteElo "2261"]
[ECO "B92"]
[TimeControl "40/5400:1800+30"]

1. e4 {[%clk 1:30:57]} c5 {[%clk 1:30:55]} 2. Nf3 {[%clk 1:31:24]} d6
{[%clk 1:31:20]} 3. d4 {[%clk 1:31:48]} cxd4 {[%clk 1:31:44]} 4. Nxd4
{[%clk 1:32:02]} Nf6 {[%clk 1:32:06]} 5. Nc3 {[%clk 1:32:23]} a6 {[%clk 1:32:30]}
6. Be2 {[%clk 1:32:35]} e5 {[%clk 1:32:48]} 7. Nb3 {[%clk 1:32:58]} Be7
{[%clk 1:33:08]} 8. O-O {[%clk 1:33:10]} O-O {[%clk 1:33:27]} 9. Be3
{[%clk 1:32:12]} Be6 {[%clk 1:33:45]} 10. Qd2 {[%clk 1:32:06]} Nbd7
{[%clk 1:33:57]} 11. a4 {[%clk 1:32:18]} Rc8 {[%clk 1:34:10]} 12. a5
{[%clk 1:22:09]} Qc7 {[%clk 1:34:07]} 13. Rfd1 {[%clk 1:22:16]} Rfe8
{[%clk 1:34:13]} 14. Qe1 {[%clk 1:17:35]} h6 {[%clk 1:33:57]} 15. Nc1
{[%clk 1:05:01]} Bf8 {[%clk 1:32:32]} 16. h3 {[%clk 1:01:43]} Qc6
{[%clk 1:22:34]} 17. Bf3 {[%clk 1:01:13]} Qc7 {[%clk 1:22:37]} 18. Rd2
{[%clk 0:49:16]} b5 {[%clk 1:17:23]} 19. axb6 {[%clk 0:41:28]} Nxb6
{[%clk 1:17:47]} 20. Bxb6 {[%clk 0:38:10]} Qxb6 {[%clk 1:18:12]} 21. Nd3
{[%clk 0:38:26]} Ra8 {[%clk 0:58:35]} 22. Re2 {[%clk 0:34:52]} a5
{[%clk 0:54:17]} 23. b3 {[%clk 0:34:09]} Be7 {[%clk 0:51:49]} 24. Nb2
{[%clk 0:33:32]} Rec8 {[%clk 0:43:00]} 25. Nba4 {[%clk 0:32:07]} Qb7
{[%clk 0:36:31]} 26. Qd1 {[%clk 0:31:03]} g6 {[%clk 0:35:25]} 27. Qd3
{[%clk 0:28:04]} Rab8 {[%clk 0:32:20]} 28. Rd1 {[%clk 0:25:09]} h5
{[%clk 0:31:56]} 29. Qe3 {[%clk 0:23:03]} Rc7 {[%clk 0:23:21]} 30. Red2
{[%clk 0:18:05]} Rbc8 {[%clk 0:22:16]} 31. Rd3 {[%clk 0:17:48]} Kg7
{[%clk 0:19:41]} 32. Re1 {[%clk 0:16:03]} Bd7 {[%clk 0:11:10]} 33. Bd1
{[%clk 0:15:57]} Be6 {[%clk 0:09:26]} 34. Bf3 {[%clk 0:13:19]} Nd7
{[%clk 0:09:11]} 35. Bd1 {[%clk 0:13:01]} Nf6 {[%clk 0:04:41]} 36. Bf3
{[%clk 0:11:56]} Qb4 {[%clk 0:03:55]} 37. Bd1 {[%clk 0:09:45]} Bd7
{[%clk 0:03:11]} 38. Na2 {[%clk 0:07:57]} Qa3 {[%clk 0:03:16]} 39. N2c3
{[%clk 0:08:01]} Qb4 {[%clk 0:02:34]} 40. Na2 {[%clk 0:38:13]} Qa3
{[%clk 0:31:17]} 41. N2c3 {[%clk 0:34:59]} Qb4 {[%clk 0:31:41]} 1/2-1/2

[Event "European Individual Women's Chess Championship 2017"]
[Site "Riga LAT"]
[Date "2017.04.21"]
[Round "10.36"]
[White "Abdulla, Khayala"]
[Black "Warakomska, Anna"]
[Result "1-0"]
[LiveChessVersion "1.4.8"]
[BlackElo "2343"]
[WhiteElo "2241"]
[ECO "A20"]
[TimeControl "40/5400:1800+30"]

1. c4 {[%clk 1:30:56]} e5 {[%clk 1:27:36]} 2. g3 {[%clk 1:31:01]} Nc6
{[%clk 1:25:09]} 3. Bg2 {[%clk 1:31:01]} Bc5 {[%clk 1:23:59]} 4. e3
{[%clk 1:29:30]} Nf6 {[%clk 1:18:22]} 5. Nc3 {[%clk 1:28:51]} a6 {[%clk 1:12:55]}
6. Nge2 {[%clk 1:27:46]} Ba7 {[%clk 1:11:21]} 7. d4 {[%clk 1:24:40]} d6
{[%clk 1:10:45]} 8. Bxc6+ {[%clk 1:17:13]} bxc6 {[%clk 1:11:09]} 9. dxe5
{[%clk 1:17:40]} Ng4 {[%clk 1:00:06]} 10. exd6 {[%clk 1:04:15]} Ne5
{[%clk 0:59:13]} 11. f4 {[%clk 0:56:00]} Nxc4 {[%clk 0:56:07]} 12. dxc7
{[%clk 0:52:12]} Qxc7 {[%clk 0:55:09]} 13. Qd3 {[%clk 0:50:34]} Nd6
{[%clk 0:45:09]} 14. Ne4 {[%clk 0:42:54]} Nxe4 {[%clk 0:44:10]} 15. Qxe4+
{[%clk 0:43:21]} Kf8 {[%clk 0:44:28]} 16. Bd2 {[%clk 0:39:29]} Bb7
{[%clk 0:43:18]} 17. Qc4 {[%clk 0:36:45]} Re8 {[%clk 0:31:37]} 18. e4
{[%clk 0:26:47]} c5 {[%clk 0:23:51]} 19. Nc3 {[%clk 0:26:39]} Bxe4
{[%clk 0:13:24]} 20. Nxe4 {[%clk 0:27:01]} Qb7 {[%clk 0:13:28]} 21. O-O-O
{[%clk 0:26:43]} Rxe4 {[%clk 0:12:48]} 22. Qc2 {[%clk 0:25:32]} f5
{[%clk 0:08:49]} 23. Rhe1 {[%clk 0:19:05]} Kf7 {[%clk 0:08:53]} 24. g4
{[%clk 0:16:27]} Rhe8 {[%clk 0:08:28]} 25. gxf5 {[%clk 0:16:32]} Qd5
{[%clk 0:03:40]} 26. Rxe4 {[%clk 0:15:01]} Rxe4 {[%clk 0:03:53]} 27. Bc3
{[%clk 0:07:29]} Qxf5 {[%clk 0:03:51]} 28. Rd7+ {[%clk 0:07:00]} Qxd7
{[%clk 0:04:16]} 29. Qxe4 {[%clk 0:07:27]} Kg8 {[%clk 0:04:12]} 30. Qa8+
{[%clk 0:06:40]} Kf7 {[%clk 0:04:37]} 31. Qe4 {[%clk 0:07:07]} Kg8
{[%clk 0:05:03]} 32. h4 {[%clk 0:07:05]} Bb8 {[%clk 0:03:50]} 33. f5
{[%clk 0:04:35]} Kf8 {[%clk 0:02:40]} 34. f6 {[%clk 0:02:38]} gxf6
{[%clk 0:02:59]} 35. Bxf6 {[%clk 0:03:01]} Qd6 {[%clk 0:02:30]} 36. Bg5
{[%clk 0:03:06]} h6 {[%clk 0:02:26]} 37. Bd2 {[%clk 0:02:34]} Kg8
{[%clk 0:01:38]} 38. Qg4+ {[%clk 0:02:44]} Kh7 {[%clk 0:01:18]} 39. Qe4+
{[%clk 0:03:07]} Kg8 {[%clk 0:01:25]} 40. Qe8+ {[%clk 0:33:30]} Qf8
{[%clk 0:30:37]} 41. Qg6+ {[%clk 0:32:35]} Qg7 {[%clk 0:29:49]} 42. Qe8+
{[%clk 0:28:49]} Qf8 {[%clk 0:29:58]} 43. Qxf8+ {[%clk 0:28:34]} Kxf8
{[%clk 0:30:24]} 44. Bxh6+ {[%clk 0:29:01]} Kf7 {[%clk 0:30:40]} 45. b3
{[%clk 0:29:22]} Ke6 {[%clk 0:20:42]} 46. Kc2 {[%clk 0:29:35]} Kd5
{[%clk 0:19:38]} 47. Kd3 {[%clk 0:29:59]} Be5 {[%clk 0:19:03]} 48. Be3
{[%clk 0:29:49]} a5 {[%clk 0:17:19]} 49. a4 {[%clk 0:30:15]} 1-0

[Event "European Individual Women's Chess Championship 2017"]
[Site "Riga LAT"]
[Date "2017.04.21"]
[Round "10.37"]
[White "Kantane, Anna"]
[Black "Antova, Gabriela"]
[Result "1-0"]
[LiveChessVersion "1.4.8"]
[BlackElo "2335"]
[WhiteElo "2230"]
[ECO "B96"]
[TimeControl "40/5400:1800+30"]

1. e4 {[%clk 1:30:56]} c5 {[%clk 1:30:54]} 2. Nf3 {[%clk 1:31:01]} d6
{[%clk 1:31:17]} 3. d4 {[%clk 1:31:26]} cxd4 {[%clk 1:31:40]} 4. Nxd4
{[%clk 1:31:51]} Nf6 {[%clk 1:32:01]} 5. Nc3 {[%clk 1:32:14]} a6 {[%clk 1:32:25]}
6. Bg5 {[%clk 1:32:23]} e6 {[%clk 1:32:41]} 7. f4 {[%clk 1:31:53]} Nbd7
{[%clk 1:33:00]} 8. Qf3 {[%clk 1:31:20]} Qc7 {[%clk 1:33:19]} 9. O-O-O
{[%clk 1:30:55]} b5 {[%clk 1:33:41]} 10. e5 {[%clk 1:07:39]} Bb7 {[%clk 1:33:58]}
11. Qh3 {[%clk 1:07:50]} dxe5 {[%clk 1:34:12]} 12. Nxe6 {[%clk 1:05:51]} fxe6
{[%clk 1:34:32]} 13. Qxe6+ {[%clk 1:06:12]} Be7 {[%clk 1:34:53]} 14. Bxb5
{[%clk 1:01:59]} axb5 {[%clk 1:34:21]} 15. Nxb5 {[%clk 0:59:34]} Qc6
{[%clk 1:29:31]} 16. Nd6+ {[%clk 0:54:08]} Kd8 {[%clk 1:29:50]} 17. fxe5
{[%clk 0:41:11]} Kc7 {[%clk 1:20:11]} 18. Kb1 {[%clk 0:15:36]} Rhb8
{[%clk 0:47:44]} 19. Qxe7 {[%clk 0:14:02]} Nd5 {[%clk 0:47:36]} 20. Qe6
{[%clk 0:04:41]} Nb4 {[%clk 0:39:30]} 21. c4 {[%clk 0:03:17]} Ba6
{[%clk 0:33:06]} 22. a3 {[%clk 0:03:20]} Bxc4 {[%clk 0:23:53]} 23. Qxc4
{[%clk 0:02:47]} Nxe5 {[%clk 0:21:04]} 24. Qxc6+ {[%clk 0:01:47]} Nbxc6
{[%clk 0:21:26]} 25. Kc2 {[%clk 0:01:18]} Rf8 {[%clk 0:16:41]} 26. Rd2
{[%clk 0:01:07]} Ra4 {[%clk 0:14:53]} 27. Rhd1 {[%clk 0:01:10]} Rg4
{[%clk 0:14:08]} 28. Be3 {[%clk 0:01:14]} Na5 {[%clk 0:12:07]} 29. g3
{[%clk 0:00:42]} Nac4 {[%clk 0:10:03]} 30. Nxc4 {[%clk 0:00:43]} Nxc4
{[%clk 0:10:32]} 31. Rd7+ {[%clk 0:00:37]} Kc6 {[%clk 0:10:31]} 32. Bg1
{[%clk 0:00:36]} Re8 {[%clk 0:05:36]} 33. R7d4 {[%clk 0:00:37]} Rxd4
{[%clk 0:05:43]} 34. Bxd4 {[%clk 0:00:37]} g6 {[%clk 0:05:57]} 35. Kd3
{[%clk 0:00:44]} Kd5 {[%clk 0:05:17]} 36. Rc1 {[%clk 0:00:45]} Rc8
{[%clk 0:04:57]} 37. Rc2 {[%clk 0:00:50]} Rc6 {[%clk 0:04:44]} 38. a4
{[%clk 0:00:45]} 1-0